[Event "11th LCC FIDE Open 2019"]
[Site "London"]
[Date "2019.12.04"]
[Round "7.3"]
[White "Flear, Glenn C"]
[Black "Song, Raymond"]
[Result "1/2-1/2"]
[ECO "D38"]
[WhiteElo "2463"]
[BlackElo "2468"]
[Annotator "ChessBase"]
[PlyCount "185"]
[EventDate "2019.11.29"]
[EventType "swiss"]
[EventCountry "ENG"]
[SourceTitle "playchess.com"]
[Source "ChessBase"]
[SourceQuality "1"]
[TimeControl "40/5400+30:1800+30"]

1. d4 {[%emt 0:00:00]} Nf6 {[%emt 0:00:00]} 2. c4 {[%emt 0:00:00]} e6 {[%emt 0:00:00]} 3. Nf3 {[%emt 0:00:35]} d5 {[%emt 0:00:00]} 4. Nc3 {[%emt 0:00:19]} Bb4 {[%emt 0:00:00]} 5. Qa4+ {[%emt 0:00:55]} Nc6 {[%emt 0:00:00]} 6. e3 {[%emt 0:00:16]} O-O {[%emt 0:00:08]} 7. Qc2 {[%emt 0:00:45]} Ne7 {[%emt 0:00:12]} 8. Bd2 {[%emt 0:07:35]} b6 {[%emt 0:00:07]} 9. Nb5 {[%emt 0:11:26]} c5 {[%emt 0:03:19]} 10. dxc5 {[%emt 0:04:00]} bxc5 {[%emt 0:03:06]} 11. cxd5 {[%emt 0:04:54]} Nexd5 {[%emt 0:01:29]} 12. Be2 {[%emt 0:13:19]} Bxd2+ {[%emt 0:01:18]} 13. Nxd2 {[%emt 0:01:33]} Nb4 {[%emt 0:00:08]} 14. Qc3 {[%emt 0:06:19]} Ba6 {[%emt 0:10:05]} 15. O-O {[%emt 0:03:16]} Rb8 {[%emt 0:06:28]} 16. a4 {[%emt 0:02:09]} Qe7 {[%emt 0:00:05]} 17. Rfc1 {[%emt 0:04:15]} Rfc8 {[%emt 0:00:05]} 18. Bf1 {[%emt 0:02:15]} e5 {[%emt 0:11:12]} 19. Nc4 {[%emt 0:08:47]} e4 {[%emt 0:00:42]} 20. Qe5 {[%emt 0:03:10]} Qxe5 {[%emt 0:06:56]} 21. Nxe5 {[%emt 0:00:11]} Bxb5 {[%emt 0:01:43]} 22. axb5 {[%emt 0:03:00]} Rb7 {[%emt 0:00:06]} 23. Bc4 {[%emt 0:05:50]} Rcc7 {[%emt 0:03:33]} 24. Rxa7 {[%emt 0:04:34]} Rxa7 {[%emt 0:00:24]} 25. b6 {[%emt 0:00:05]} Kf8 {[%emt 0:04:24]} 26. bxa7 {[%emt 0:03:28]} Rxa7 {[%emt 0:00:05]} 27. Nxf7 {[%emt 0:06:08]} Rxf7 {[%emt 0:01:19]} 28. Bxf7 {[%emt 0:00:05]} Nd3 {[%emt 0:00:07]} 29. Rc3 {[%emt 0:02:36]} Kxf7 {[%emt 0:00:06]} 30. f3 {[%emt 0:00:20]} Nd5 {[%emt 0:01:12]} 31. Rc4 {[%emt 0:01:13]} exf3 {[%emt 0:07:21]} 32. gxf3 {[%emt 0:00:06]} Nxb2 {[%emt 0:00:03]} 33. Rxc5 {[%emt 0:00:06]} Nxe3 {[%emt 0:00:04]} 34. Rc7+ {[%emt 0:01:30]} Kf6 {[%emt 0:00:06]} 35. Rc6+ {[%emt 0:00:50]} Ke5 {[%emt 0:00:39]} 36. Rc7 {[%emt 0:00:08]} Nf5 {[%emt 0:00:16]} 37. Rb7 {[%emt 0:01:13]} Nd3 {[%emt 0:00:21]} 38. Rd7 {[%emt 0:00:10]} Nc5 {[%emt 0:00:16]} 39. Rc7 {[%emt 0:00:10]} Ne6 {[%emt 0:00:05]} 40. Ra7 {[%emt 0:00:31]} Kf4 {[%emt 0:00:21]} 41. Kf2 {[%emt 0:30:51]} Ned4 {[%emt 0:30:18]} 42. Ra4 {[%emt 0:00:41]} Kg5 {[%emt 0:00:52]} 43. Rb4 {[%emt 0:00:00]} Ne6 {[%emt 0:00:00]} 44. Rg4+ {[%emt 0:00:00]} Kf6 {[%emt 0:00:00]} 45. Ra4 {[%emt 0:00:00]} g6 {[%emt 0:00:00]} 46. Ra7 {[%emt 0:00:00]} h6 {[%emt 0:00:00]} 47. Ra4 {[%emt 0:00:00]} Nfd4 {[%emt 0:00:00]} 48. Ra6 {[%emt 0:00:00]} Kg5 {[%emt 0:00:00]} 49. Kg3 {[%emt 0:00:00]} Nf5+ {[%emt 0:00:00]} 50. Kf2 {[%emt 0:00:00]} Nf4 {[%emt 0:00:00]} 51. Ra4 {[%emt 0:00:00]} h5 {[%emt 0:00:00]} 52. Re4 {[%emt 0:00:00]} Nd3+ {[%emt 0:00:00]} 53. Kg2 {[%emt 0:00:00]} Nc5 {[%emt 0:00:00]} 54. Re5 {[%emt 0:00:00]} Nd3 {[%emt 0:00:00]} 55. Re4 {[%emt 0:00:00]} Kf6 {[%emt 0:00:00]} 56. Kf1 {[%emt 0:00:00]} Ne5 {[%emt 0:00:00]} 57. Ke2 {[%emt 0:00:00]} Ng7 {[%emt 0:00:00]} 58. Rf4+ {[%emt 0:00:00]} Ke6 {[%emt 0:00:00]} 59. Ra4 {[%emt 0:00:00]} Kf5 {[%emt 0:00:00]} 60. Ra5 {[%emt 0:00:00]} Ne6 {[%emt 0:00:00]} 61. Ke3 {[%emt 0:00:00]} Kf6 {[%emt 0:00:00]} 62. Ra6 {[%emt 0:00:00]} Nd7 {[%emt 0:00:00]} 63. Rd6 {[%emt 0:00:00]} Ke7 {[%emt 0:00:00]} 64. Ra6 {[%emt 0:00:00]} Ndc5 {[%emt 0:00:00]} 65. Rb6 {[%emt 0:00:00]} Kf6 {[%emt 0:00:00]} 66. Rb4 {[%emt 0:00:00]} Kg5 {[%emt 0:00:00]} 67. Rc4 {[%emt 0:00:00]} Nd7 {[%emt 0:00:00]} 68. Ra4 {[%emt 0:00:00]} Nb6 {[%emt 0:00:00]} 69. Re4 {[%emt 0:00:00]} Nd5+ {[%emt 0:00:00]} 70. Kf2 {[%emt 0:00:00]} Nef4 {[%emt 0:00:00]} 71. Kg3 {[%emt 0:00:00]} Nd3 {[%emt 0:00:00]} 72. Ra4 {[%emt 0:00:00]} N5f4 {[%emt 0:00:00]} 73. Ra5+ {[%emt 0:00:00]} Kf6 {[%emt 0:00:00]} 74. Ra6+ {[%emt 0:00:00]} Kf5 {[%emt 0:00:00]} 75. Ra5+ {[%emt 0:00:00]} Ne5 {[%emt 0:00:00]} 76. Kf2 {[%emt 0:00:00]} Kf6 {[%emt 0:00:00]} 77. Rb5 {[%emt 0:00:00]} Ne6 {[%emt 0:00:00]} 78. Rd5 {[%emt 0:01:55]} Ng5 {[%emt 0:00:00]} 79. f4 {[%emt 0:00:54]} Ng4+ {[%emt 0:00:00]} 80. Kg3 {[%emt 0:02:36]} Ne6 {[%emt 0:00:00]} 81. h3 {[%emt 0:01:15]} Ne3 {[%emt 0:00:00]} 82. Ra5 {[%emt 0:00:11]} Nf5+ {[%emt 0:00:00]} 83. Kf3 {[%emt 0:00:06]} Nfd4+ {[%emt 0:00:00]} 84. Ke3 {[%emt 0:00:19]} Nb3 {[%emt 0:00:00]} 85. Rd5 {[%emt 0:00:49]} Nbc5 {[%emt 0:00:00]} 86. Kf3 {[%emt 0:00:27]} Na6 {[%emt 0:00:42]} 87. Ke3 {[%emt 0:00:49]} Nb4 {[%emt 0:01:07]} 88. Ra5 {[%emt 0:00:53]} Nc2+ {[%emt 0:00:39]} 89. Ke4 {[%emt 0:01:09]} Ncd4 {[%emt 0:00:04]} 90. Ke3 {[%emt 0:00:24]} Nf5+ {[%emt 0:00:35]} 91. Kf3 {[%emt 0:00:13]} Ned4+ {[%emt 0:00:54]} 92. Ke4 {[%emt 0:01:06]} Ne6 {[%emt 0:01:28]} 93. Kf3 {[%emt 0:01:29] Ke5 Ke4+} 1/2-1/2

[Event "11th LCC FIDE Open 2019"]
[Site "London"]
[Date "2019.12.04"]
[Round "7.6"]
[White "Kirk, Ezra"]
[Black "Gordon, Stephen J"]
[Result "0-1"]
[ECO "B81"]
[WhiteElo "2433"]
[BlackElo "2505"]
[Annotator "RC"]
[PlyCount "144"]
[EventDate "2019.11.29"]
[EventType "swiss"]
[EventCountry "ENG"]
[SourceTitle "playchess.com"]
[Source "ChessBase"]
[SourceQuality "1"]
[TimeControl "40/5400+30:1800+30"]

1. e4 {[%emt 0:03:57]} c5 {[%emt 0:00:00]} 2. Nf3 {[%emt 0:00:13]} d6 {[%emt 0:00:00]} 3. d4 {[%emt 0:00:08]} cxd4 {[%emt 0:00:00]} 4. Nxd4 {[%emt 0:00:06]} Nf6 {[%emt 0:00:05]} 5. Nc3 {[%emt 0:00:07]} a6 {[%emt 0:00:33]} 6. h3 {[%emt 0:00:20]} e6 {[%emt 0:00:42]} 7. g4 {[%emt 0:00:23]} Nfd7 {[%emt 0:00:40]} 8. Be3 {[%emt 0:00:57]} b5 {[%emt 0:04:56]} 9. a3 {[%emt 0:00:58]} Be7 {[%emt 0:01:54]} 10. g5 {[%emt 0:01:01]} Bb7 {[%emt 0:00:44]} 11. h4 {[%emt 0:00:31]} Nc6 {[%emt 0:05:53]} 12. f4 {[%emt 0:03:06]} O-O {[%emt 0:10:11]} 13. Rh3 {[%emt 0:03:21]} Re8 {[%emt 0:11:47]} 14. Nxc6 {[%emt 0:31:21]} Bxc6 {[%emt 0:00:03]} 15. f5 {[%emt 0:20:18]} Ne5 {[%emt 0:11:57]} 16. f6 {[%emt 0:06:19]} gxf6 {[%emt 0:02:24]} 17. Qh5 {[%emt 0:00:08]} Kh8 {[%emt 0:03:41]} 18. O-O-O {[%emt 0:01:34]} Rg8 {[%emt 0:05:24]} 19. Bd4 {[%emt 0:01:36]} Qe8 {[%emt 0:03:01]} 20. Kb1 {[%emt 0:07:20]} Rg6 {[%emt 0:06:34]} 21. Bd3 {[%emt 0:08:20]} Qg8 22. Rdh1 {[%emt 0:01:18]} Qg7 23. Ne2 {[%emt 0:01:24]} Kg8 {[%emt 0:14:36]} 24. Nf4 Nxd3 {[%emt 0:02:55]} 25. cxd3 {[%emt 0:02:21]} e5 {[%emt 0:00:00]} 26. Nxg6 {[%emt 0:00:04]} fxg6 {[%emt 0:00:00]} 27. Qd1 {[%emt 0:01:07]} exd4 {[%emt 0:00:11]} 28. h5 {[%emt 0:00:20]} Be8 {[%emt 0:00:35]} 29. hxg6 {[%emt 0:01:57]} Bxg6 {[%emt 0:00:03]} 30. gxf6 {[%emt 0:00:17]} Bxf6 {[%emt 0:02:34]} 31. Qc2 {[%emt 0:01:25]} Rd8 {[%emt 0:02:44]} 32. Qc6 {[%emt 0:00:42]} Qd7 {[%emt 0:00:33]} 33. Qxa6 {[%emt 0:00:42]} Bg7 {[%emt 0:02:00]} 34. Rg3 {[%emt 0:00:39]} Rc8 {[%emt 0:01:00]} 35. Rg5 {[%emt 0:00:28]} Be5 {[%emt 0:00:54]} 36. Qa5 {[%emt 0:01:21]} Qd8 {[%emt 0:01:09]} 37. Qd2 {[%emt 0:00:27]} Qf6 {[%emt 0:00:20]} 38. Qg2 {[%emt 0:00:48]} Rf8 {[%emt 0:01:46]} 39. Qg4 {[%emt 0:00:42]} Rd8 {[%emt 0:03:26]} 40. Rf5 {[%emt 0:01:02]} Qg7 {[%emt 0:01:44]} 41. Rg5 {[%emt 0:01:48]} Rf8 {[%emt 0:08:02]} 42. Rg1 {[%emt 0:07:07]} Kh8 {[%emt 0:11:15]} 43. Rh1 {[%emt 0:06:21]} Rg8 {[%emt 0:00:56]} 44. Rg1 {[%emt 0:01:47]} Qf7 {[%emt 0:01:49]} 45. Qh3 {[%emt 0:02:20]} Qe8 {[%emt 0:03:19]} 46. Qf3 {[%emt 0:02:16]} Qe6 {[%emt 0:01:10]} 47. Qh1 {[%emt 0:01:21]} b4 {[%emt 0:03:02]} 48. axb4 {[%emt 0:03:58]} Ra8 {[%emt 0:00:59]} 49. Rxg6 {[%emt 0:00:59]} Qa2+ {[%emt 0:00:04]} 50. Kc2 {[%emt 0:00:25]} Rc8+ {[%emt 0:00:03]} 51. Kd1 {[%emt 0:00:05]} Qxb2 {[%emt 0:01:21]} 52. Qh6 {[%emt 0:01:03]} Ra8 {[%emt 0:04:48]} 53. Rg8+ {[%emt 0:00:51]} Rxg8 {[%emt 0:00:01]} 54. Rxg8+ {[%emt 0:00:06]} Kxg8 {[%emt 0:00:01]} 55. Qg5+ {[%emt 0:00:34]} Kf7 {[%emt 0:00:11]} 56. Qf5+ {[%emt 0:00:10]} Ke7 {[%emt 0:00:36]} 57. Qxh7+ {[%emt 0:01:05]} Kd8 {[%emt 0:00:01]} 58. Qg8+ {[%emt 0:01:21]} Kc7 {[%emt 0:00:02]} 59. Qc4+ {[%emt 0:00:24]} Kb6 {[%emt 0:00:01]} 60. Qc8 {[%emt 0:00:24]} Qb1+ {[%emt 0:02:24]} 61. Ke2 {[%emt 0:00:16]} Qa2+ {[%emt 0:00:05]} 62. Kd1 {[%emt 0:01:39]} Qa6 {[%emt 0:01:20]} 63. Qc2 {[%emt 0:00:33]} Qa1+ {[%emt 0:01:06]} 64. Ke2 {[%emt 0:00:26]} Qg1 {[%emt 0:00:18]} 65. Qc4 {[%emt 0:00:59]} Qe3+ {[%emt 0:00:55]} 66. Kf1 {[%emt 0:01:11]} Bg3 {[%emt 0:00:54]} 67. Qc2 {[%emt 0:01:29]} Qf3+ {[%emt 0:00:39]} 68. Kg1 {[%emt 0:00:12]} Bf4 {[%emt 0:00:27]} 69. Qb3 {[%emt 0:01:45]} Be3+ {[%emt 0:00:29]} 70. Kh2 {[%emt 0:00:03]} Bf4+ {[%emt 0:00:26]} 71. Kg1 {[%emt 0:00:04]} Qg3+ {[%emt 0:00:16]} 72. Kf1 {[%emt 0:00:05]} Be3 {[%emt 0:00:10]} 0-1

[Event "11th LCC FIDE Open 2019"]
[Site "London"]
[Date "2019.12.04"]
[Round "7.7"]
[White "Merry, Alan B"]
[Black "Petrov, Martin"]
[Result "1/2-1/2"]
[ECO "A33"]
[WhiteElo "2426"]
[BlackElo "2497"]
[Annotator "ChessBase"]
[PlyCount "104"]
[EventDate "2019.11.29"]
[EventType "swiss"]
[EventCountry "ENG"]
[SourceTitle "playchess.com"]
[Source "ChessBase"]
[SourceQuality "1"]
[TimeControl "40/5400+30:1800+30"]

1. c4 {[%emt 0:00:00]} c5 {[%emt 0:00:00]} 2. Nf3 {[%emt 0:00:00]} Nc6 {[%emt 0:00:11]} 3. d4 {[%emt 0:00:00]} cxd4 {[%emt 0:00:05]} 4. Nxd4 {[%emt 0:00:00]} Nf6 {[%emt 0:00:24]} 5. Nc3 {[%emt 0:00:00]} e6 {[%emt 0:00:06]} 6. a3 {[%emt 0:00:01]} Be7 {[%emt 0:00:07]} 7. e4 {[%emt 0:00:22]} O-O {[%emt 0:00:09]} 8. Nf3 {[%emt 0:00:15]} Qc7 {[%emt 0:00:11]} 9. Be2 {[%emt 0:01:12]} b6 {[%emt 0:03:39]} 10. Bg5 {[%emt 0:09:05]} Bb7 {[%emt 0:04:32]} 11. Rc1 {[%emt 0:03:14]} Rac8 {[%emt 0:03:39]} 12. O-O {[%emt 0:02:27]} Qb8 {[%emt 0:01:05]} 13. Bh4 {[%emt 0:10:24]} Rfd8 {[%emt 0:02:32]} 14. h3 {[%emt 0:11:41]} d6 {[%emt 0:02:49]} 15. b4 {[%emt 0:06:46]} Ne5 {[%emt 0:05:15]} 16. Nxe5 {[%emt 0:04:28]} dxe5 {[%emt 0:00:57]} 17. Qb3 {[%emt 0:04:47]} Kf8 {[%emt 0:11:12]} 18. f3 {[%emt 0:06:39]} Nh5 {[%emt 0:08:37]} 19. Bxe7+ {[%emt 0:03:14]} Kxe7 {[%emt 0:00:05]} 20. Rfd1 {[%emt 0:00:22]} Rd4 {[%emt 0:17:59]} 21. Nb5 {[%emt 0:06:56]} Rxd1+ {[%emt 0:02:50]} 22. Rxd1 {[%emt 0:02:18]} Rd8 {[%emt 0:02:30]} 23. Rxd8 {[%emt 0:03:00]} Qxd8 {[%emt 0:00:58]} 24. Qd3 {[%emt 0:00:06]} Qb8 {[%emt 0:03:59]} 25. Nc3 {[%emt 0:02:57]} Bc6 {[%emt 0:03:08]} 26. Bf1 {[%emt 0:02:13]} Qd6 {[%emt 0:01:54]} 27. Qxd6+ {[%emt 0:00:35]} Kxd6 {[%emt 0:00:02]} 28. Kf2 {[%emt 0:00:25]} g6 {[%emt 0:01:44]} 29. h4 {[%emt 0:07:27]} f5 {[%emt 0:00:38]} 30. g3 {[%emt 0:00:08]} Nf6 {[%emt 0:03:04]} 31. Bd3 {[%emt 0:02:32]} Bd7 {[%emt 0:02:29]} 32. Ke3 {[%emt 0:00:48]} Nh5 {[%emt 0:01:20]} 33. g4 {[%emt 0:02:00]} Nf4 {[%emt 0:00:37]} 34. Bf1 {[%emt 0:00:36]} Bc6 {[%emt 0:00:47]} 35. Nb1 {[%emt 0:04:44]} Ba4 {[%emt 0:03:39]} 36. Nd2 {[%emt 0:00:45]} Kc6 {[%emt 0:03:31]} 37. c5 {[%emt 0:03:58]} b5 {[%emt 0:02:19]} 38. Nb1 {[%emt 0:00:42]} Bb3 {[%emt 0:01:16]} 39. Nc3 {[%emt 0:01:12]} a6 {[%emt 0:01:07]} 40. g5 {[%emt 0:00:53]} Bc4 {[%emt 0:07:44]} 41. Bxc4 {[%emt 0:08:09]} bxc4 {[%emt 0:00:02]} 42. Ne2 {[%emt 0:04:38]} Nd3 {[%emt 0:01:33]} 43. Kd2 {[%emt 0:04:53]} a5 {[%emt 0:01:36]} 44. Nc1 {[%emt 0:02:50]} Nxb4 {[%emt 0:02:45]} 45. axb4 {[%emt 0:00:07]} axb4 {[%emt 0:00:03]} 46. Kc2 {[%emt 0:00:48]} f4 {[%emt 0:02:09]} 47. Ne2 {[%emt 0:00:56]} Kxc5 {[%emt 0:00:05]} 48. Kb2 {[%emt 0:04:11]} Kb5 {[%emt 0:00:15]} 49. Kc2 {[%emt 0:03:21]} Ka4 {[%emt 0:03:30]} 50. Kb2 {[%emt 0:00:19]} Ka5 {[%emt 0:01:57]} 51. Ng1 {[%emt 0:01:45]} Ka4 {[%emt 0:00:49]} 52. Ne2 {[%emt 0:00:20]} Kb5 {[%emt 0:00:23]} 1/2-1/2

[Event "11th LCC FIDE Open 2019"]
[Site "London"]
[Date "2019.12.04"]
[Round "7.8"]
[White "Gormally, Daniel W"]
[Black "Bates, Richard A"]
[Result "1-0"]
[ECO "B90"]
[WhiteElo "2491"]
[BlackElo "2342"]
[Annotator "ChessBase"]
[PlyCount "71"]
[EventDate "2019.11.29"]
[EventType "swiss"]
[EventCountry "ENG"]
[SourceTitle "playchess.com"]
[Source "ChessBase"]
[SourceQuality "1"]
[TimeControl "40/5400+30:1800+30"]

1. e4 {[%emt 0:00:00]} c5 {[%emt 0:02:09]} 2. Nf3 {[%emt 0:00:00]} d6 {[%emt 0:00:23]} 3. d4 {[%emt 0:00:00]} cxd4 {[%emt 0:00:11]} 4. Nxd4 {[%emt 0:00:00]} Nf6 {[%emt 0:00:27]} 5. Nc3 {[%emt 0:00:00]} a6 {[%emt 0:00:08]} 6. Be3 {[%emt 0:00:08]} e5 {[%emt 0:00:34]} 7. Nb3 {[%emt 0:00:07]} Be6 {[%emt 0:01:36]} 8. f3 {[%emt 0:00:06]} h5 {[%emt 0:02:43]} 9. Qd2 {[%emt 0:00:35]} Nbd7 {[%emt 0:00:20]} 10. Nd5 {[%emt 0:00:05]} Bxd5 {[%emt 0:01:53]} 11. exd5 {[%emt 0:00:05]} Qc7 {[%emt 0:04:38]} 12. c4 {[%emt 0:00:08]} a5 {[%emt 0:01:48]} 13. a4 {[%emt 0:00:06]} g6 {[%emt 0:03:38]} 14. Bd3 {[%emt 0:00:25]} b6 {[%emt 0:06:22]} 15. O-O {[%emt 0:00:16]} Nc5 {[%emt 0:01:39]} 16. Nxc5 {[%emt 0:01:21]} bxc5 {[%emt 0:00:39]} 17. f4 {[%emt 0:11:04]} e4 {[%emt 0:15:21]} 18. Be2 {[%emt 0:03:50]} Bg7 {[%emt 0:02:46]} 19. f5 {[%emt 0:04:51]} O-O {[%emt 0:01:34]} 20. Rab1 {[%emt 0:02:30]} Rae8 {[%emt 0:09:23]} 21. Qe1 {[%emt 0:07:05]} Nh7 {[%emt 0:19:54]} 22. Kh1 {[%emt 0:10:44]} Kh8 {[%emt 0:04:06]} 23. Bd2 {[%emt 0:09:44]} Qd7 {[%emt 0:02:58]} 24. b3 {[%emt 0:00:13]} gxf5 {[%emt 0:01:26]} 25. Qh4 {[%emt 0:01:09]} Bd4 {[%emt 0:07:38]} 26. Qxh5 {[%emt 0:01:37]} f4 {[%emt 0:05:00]} 27. Rxf4 {[%emt 0:01:52]} f5 {[%emt 0:00:15]} 28. Rbf1 {[%emt 0:06:01]} Re5 {[%emt 0:00:18]} 29. g4 {[%emt 0:01:59]} Qb7 {[%emt 0:01:28]} 30. g5 {[%emt 0:03:27]} Kg8 {[%emt 0:01:13]} 31. g6 {[%emt 0:04:21]} Nf6 {[%emt 0:00:15]} 32. Rxf5 {[%emt 0:02:53]} Rxf5 {[%emt 0:01:09]} 33. Qxf5 {[%emt 0:00:05]} Qxb3 {[%emt 0:00:17]} 34. Qe6+ {[%emt 0:00:50]} Kg7 {[%emt 0:00:34]} 35. Qe7+ {[%emt 0:00:29]} Kg8 {[%emt 0:00:19]} 36. Bh6 {[%emt 0:00:21]} 1-0

[Event "11th LCC FIDE Open 2019"]
[Site "London"]
[Date "2019.12.04"]
[Round "7.9"]
[White "Gschnitzer, Adrian"]
[Black "Arkell, Keith C"]
[Result "0-1"]
[ECO "B01"]
[WhiteElo "2422"]
[BlackElo "2445"]
[Annotator "NA"]
[PlyCount "108"]
[EventDate "2019.11.29"]
[EventType "swiss"]
[EventCountry "ENG"]
[SourceTitle "playchess.com"]
[Source "ChessBase"]
[SourceQuality "1"]
[TimeControl "40/5400+30:1800+30"]

1. e4 {[%emt 0:00:00]} d5 {[%emt 0:00:00]} 2. exd5 {[%emt 0:00:00]} Qxd5 {[%emt 0:00:00]} 3. Nc3 {[%emt 0:00:00]} Qd8 {[%emt 0:00:00]} 4. d4 {[%emt 0:00:47]} Nf6 {[%emt 0:00:00]} 5. Nf3 {[%emt 0:00:59]} Bg4 {[%emt 0:00:00]} 6. h3 {[%emt 0:02:15]} Bxf3 {[%emt 0:00:03]} 7. Qxf3 {[%emt 0:00:16]} c6 {[%emt 0:00:04]} 8. Be3 {[%emt 0:04:35]} e6 {[%emt 0:00:06]} 9. O-O-O {[%emt 0:02:22]} Bb4 {[%emt 0:00:15]} 10. Bg5 {[%emt 0:07:00]} Bxc3 {[%emt 0:03:06]} 11. Qxc3 {[%emt 0:00:14]} Ne4 {[%emt 0:00:28]} 12. Bxd8 {[%emt 0:00:08]} Nxc3 {[%emt 0:00:04]} 13. bxc3 {[%emt 0:00:09]} Kxd8 {[%emt 0:00:03]} 14. f4 {[%emt 0:08:13]} Nd7 {[%emt 0:00:17]} 15. g4 {[%emt 0:01:31]} h5 {[%emt 0:01:08]} 16. Be2 {[%emt 0:05:18]} hxg4 {[%emt 0:00:07]} 17. hxg4 {[%emt 0:00:08]} Ke7 {[%emt 0:01:30]} 18. Kd2 {[%emt 0:01:10]} Nf6 {[%emt 0:00:46]} 19. Bf3 {[%emt 0:00:30]} Nd5 {[%emt 0:00:43]} 20. Bxd5 {[%emt 0:02:03]} cxd5 {[%emt 0:00:08]} 21. Rb1 {[%emt 0:03:56]} b6 {[%emt 0:00:06]} 22. Kd3 {[%emt 0:01:34]} Rac8 {[%emt 0:02:03]} 23. g5 {[%emt 0:08:09]} Rxh1 {[%emt 0:05:59]} 24. Rxh1 {[%emt 0:00:18]} Rc4 {[%emt 0:00:09]} 25. Kd2 {[%emt 0:10:40]} Ra4 {[%emt 0:00:12]} 26. Rh8 {[%emt 0:08:58]} Rxa2 {[%emt 0:01:21]} 27. Rb8 {[%emt 0:02:08]} g6 {[%emt 0:00:08]} 28. Ra8 {[%emt 0:11:32]} Ra1 {[%emt 0:03:50]} 29. Ke2 {[%emt 0:01:29]} b5 {[%emt 0:00:12]} 30. Kd2 {[%emt 0:01:23]} a5 {[%emt 0:01:59]} 31. Ke2 {[%emt 0:04:04]} a4 {[%emt 0:00:18]} 32. Ra7+ {[%emt 0:04:11]} Kf8 {[%emt 0:00:07]} 33. Ra8+ {[%emt 0:00:05]} Kg7 {[%emt 0:00:03]} 34. Ra5 {[%emt 0:02:09]} Rb1 {[%emt 0:05:55]} 35. Kd2 {[%emt 0:01:37]} Kh7 {[%emt 0:10:48]} 36. Ke2 {[%emt 0:04:17]} Kg8 {[%emt 0:01:00]} 37. Ra8+ {[%emt 0:00:38]} Kg7 {[%emt 0:00:06]} 38. Ra5 {[%emt 0:00:29]} f5 {[%emt 0:25:51]} 39. Ra7+ {[%emt 0:01:58]} Kf8 {[%emt 0:00:02]} 40. Rb7 {[%emt 0:02:08]} a3 {[%emt 0:01:56]} 41. Ra7 {[%emt 0:01:03]} Ra1 {[%emt 0:02:21]} 42. Kd2 {[%emt 0:04:29]} Ke8 {[%emt 0:03:22]} 43. Ra5 {[%emt 0:07:15]} a2 {[%emt 0:00:09]} 44. Ra7 {[%emt 0:00:42]} Kd8 {[%emt 0:00:09]} 45. Ke2 {[%emt 0:09:25]} Kc8 {[%emt 0:00:02]} 46. Kf2 {[%emt 0:00:11]} Kb8 {[%emt 0:00:08]} 47. Ra5 {[%emt 0:00:35]} Kc7 {[%emt 0:00:05]} 48. Kg2 {[%emt 0:00:51]} Kb6 {[%emt 0:00:36]} 49. Ra8 {[%emt 0:01:29]} b4 {[%emt 0:00:23]} 50. cxb4 {[%emt 0:00:07]} Kb5 {[%emt 0:00:04]} 51. c3 {[%emt 0:00:22]} Kc4 {[%emt 0:00:03]} 52. Ra3 {[%emt 0:00:35]} Kd3 {[%emt 0:01:10]} 53. b5 {[%emt 0:03:14]} Ke4 {[%emt 0:00:11]} 54. b6 {[%emt 0:01:47]} Kxf4 {[%emt 0:00:30]} 0-1

[Event "11th LCC FIDE Open 2019"]
[Site "London"]
[Date "2019.12.04"]
[Round "7.10"]
[White "Vaishali R"]
[Black "Hebden, Mark L"]
[Result "1-0"]
[ECO "C55"]
[WhiteElo "2376"]
[BlackElo "2436"]
[Annotator "NA"]
[PlyCount "79"]
[EventDate "2019.11.29"]
[EventType "swiss"]
[EventCountry "ENG"]
[SourceTitle "playchess.com"]
[Source "ChessBase"]
[SourceQuality "1"]
[TimeControl "40/5400+30:1800+30"]

1. e4 {[%emt 0:01:37]} e5 {[%emt 0:00:00]} 2. Nf3 {[%emt 0:00:24]} Nc6 {[%emt 0:00:00]} 3. Bc4 {[%emt 0:00:04]} Nf6 {[%emt 0:00:18]} 4. d3 {[%emt 0:00:15]} Be7 {[%emt 0:00:22]} 5. O-O {[%emt 0:00:19]} O-O {[%emt 0:00:09]} 6. Re1 {[%emt 0:00:08]} d6 {[%emt 0:00:07]} 7. a3 {[%emt 0:00:19]} Be6 {[%emt 0:03:27]} 8. Nbd2 {[%emt 0:00:34]} Qd7 {[%emt 0:01:26]} 9. b4 {[%emt 0:05:16]} a6 {[%emt 0:01:52]} 10. Bb2 {[%emt 0:01:32]} Rfe8 {[%emt 0:04:06]} 11. Bxe6 {[%emt 0:05:45]} Qxe6 {[%emt 0:00:39]} 12. c4 {[%emt 0:05:17]} Bf8 {[%emt 0:02:18]} 13. Nf1 {[%emt 0:04:12]} g6 {[%emt 0:06:49]} 14. Ne3 {[%emt 0:04:35]} Bg7 {[%emt 0:00:26]} 15. b5 {[%emt 0:03:02]} Nb8 {[%emt 0:09:47]} 16. a4 {[%emt 0:12:14]} Nbd7 {[%emt 0:04:12]} 17. Nd5 {[%emt 0:04:07]} Rec8 {[%emt 0:02:10]} 18. Bc3 {[%emt 0:17:07]} c6 {[%emt 0:01:13]} 19. Nxf6+ {[%emt 0:02:51]} Bxf6 {[%emt 0:01:07]} 20. bxc6 {[%emt 0:01:15]} bxc6 {[%emt 0:00:15]} 21. Rb1 {[%emt 0:02:02]} d5 {[%emt 0:03:14]} 22. exd5 {[%emt 0:06:13]} cxd5 {[%emt 0:00:07]} 23. Nd2 {[%emt 0:00:21]} Qf5 {[%emt 0:08:30]} 24. Nf1 {[%emt 0:03:07]} Bh4 {[%emt 0:03:27]} 25. g3 {[%emt 0:05:28]} Bg5 {[%emt 0:05:05]} 26. h4 {[%emt 0:02:35]} Bh6 {[%emt 0:02:59]} 27. Rb7 {[%emt 0:04:57]} d4 {[%emt 0:11:48]} 28. Bxd4 {[%emt 0:01:14]} exd4 {[%emt 0:02:13]} 29. g4 {[%emt 0:00:02]} Qf4 {[%emt 0:05:35]} 30. Rxd7 {[%emt 0:00:05]} Re8 {[%emt 0:00:29]} 31. Rxe8+ {[%emt 0:02:12]} Rxe8 {[%emt 0:00:01]} 32. Kg2 {[%emt 0:00:22]} f5 {[%emt 0:01:58]} 33. Nh2 {[%emt 0:02:05]} Bg7 {[%emt 0:03:26]} 34. gxf5 {[%emt 0:02:22]} Qxf5 {[%emt 0:00:20]} 35. Rd5 {[%emt 0:00:11]} Qe6 {[%emt 0:02:30]} 36. Qg4 {[%emt 0:00:53]} Qe1 {[%emt 0:01:00]} 37. h5 {[%emt 0:01:06]} Qd2 {[%emt 0:02:22]} 38. Qg3 {[%emt 0:01:30]} Rf8 {[%emt 0:03:34]} 39. hxg6 {[%emt 0:00:24]} hxg6 {[%emt 0:00:15]} 40. Rd6 {[%emt 0:01:09]} 1-0

[Event "11th LCC FIDE Open 2019"]
[Site "London"]
[Date "2019.12.04"]
[Round "7.11"]
[White "Fodor, Tamas Jr."]
[Black "Van Zyl-Rudd, Jack"]
[Result "1/2-1/2"]
[ECO "D41"]
[WhiteElo "2533"]
[BlackElo "2290"]
[Annotator "ChessBase"]
[PlyCount "50"]
[EventDate "2019.11.29"]
[EventType "swiss"]
[EventCountry "ENG"]
[SourceTitle "playchess.com"]
[Source "ChessBase"]
[SourceQuality "1"]
[TimeControl "40/5400+30:1800+30"]

1. d4 {[%emt 0:00:30]} d5 {[%emt 0:00:03]} 2. c4 {[%emt 0:00:06]} e6 {[%emt 0:00:26]} 3. Nc3 {[%emt 0:00:07]} Nf6 {[%emt 0:00:08]} 4. cxd5 {[%emt 0:00:28]} Nxd5 {[%emt 0:00:42]} 5. e4 {[%emt 0:00:06]} Nxc3 {[%emt 0:00:05]} 6. bxc3 {[%emt 0:00:04]} c5 {[%emt 0:00:06]} 7. Nf3 {[%emt 0:00:06]} cxd4 {[%emt 0:00:15]} 8. cxd4 {[%emt 0:00:06]} Bb4+ {[%emt 0:00:05]} 9. Bd2 {[%emt 0:00:05]} Bxd2+ {[%emt 0:00:04]} 10. Qxd2 {[%emt 0:00:04]} O-O {[%emt 0:00:09]} 11. Bb5 {[%emt 0:00:18]} b6 {[%emt 0:00:08]} 12. O-O {[%emt 0:00:15]} Bb7 {[%emt 0:00:05]} 13. Qe3 {[%emt 0:01:41]} Nc6 {[%emt 0:07:08]} 14. Rfd1 {[%emt 0:03:08]} Qf6 {[%emt 0:13:54]} 15. Rac1 {[%emt 0:02:55]} Rac8 {[%emt 0:04:37]} 16. d5 {[%emt 0:11:37]} Ne5 {[%emt 0:17:43]} 17. Rxc8 {[%emt 0:11:03]} Rxc8 {[%emt 0:02:28]} 18. d6 {[%emt 0:01:44]} Nxf3+ {[%emt 0:09:08]} 19. gxf3 {[%emt 0:03:06]} Qe5 {[%emt 0:06:16]} 20. d7 {[%emt 0:05:19]} Rd8 {[%emt 0:00:06]} 21. Qa3 {[%emt 0:01:56]} h6 {[%emt 0:07:31]} 22. Bf1 {[%emt 0:22:42]} Bc6 {[%emt 0:11:19]} 23. Qxa7 {[%emt 0:03:32]} Qg5+ {[%emt 0:00:05]} 24. Kh1 {[%emt 0:05:19]} Qf4 {[%emt 0:01:46]} 25. Be2 {[%emt 0:11:54]} Bxe4 {[%emt 0:01:56]} 1/2-1/2